{"text_format":"1","workbook":"xlsx","n_sheets":6,"sheets":["menu","tableauDeBord","semestre1","semestre2","notes","competences_ressources"],"not_rendered":{"charts":0,"images":11,"macros":1,"external_links":0,"defined_names":2,"comments":0,"pivot_tables":0},"unopened":[],"bounds":{"document_bytes":16777216,"sheet_cells":100000,"rows_first":2000,"rows_last":500,"rows_between":2000,"halvings":0,"cell_chars":16384,"cell_head_chars":4096},"cells_cut":0,"cells_raw":0,"read":"whole","date_system":"1900"}

{"sheet":"menu","index":0,"n_rows":0,"n_cols":0,"rows_kept":0,"cut":false,"hidden":false,"merged":[]}

{"sheet":"tableauDeBord","index":1,"n_rows":37,"n_cols":11,"rows_kept":37,"cut":false,"hidden":false,"merged":[[14,7,14,8],[9,7,9,8],[0,1,0,5],[0,7,0,8],[5,7,5,8],[2,1,7,1],[2,5,7,5],[9,1,13,1],[9,5,13,5],[4,0,5,0],[15,1,20,1],[15,5,20,5]]}
[null,{"$f":"\"Récapitulatif des notes du \"&LOWER(LEFT(A5,10))&\". Avec décision de passage et les compétences atteintes.\"","v":"Récapitulatif des notes du semestre 1. Avec décision de passage et les compétences atteintes."},null,null,null,null,null,"S1",null,{"$f":"COUNTIF(I2:I4,TRUE)","v":0}]
[null,"Compétences","Ressources","Coefficients","Moyennes des ressources","Moyenne de la compétence",null,"C1<8",{"$f":"IF(semestre1!E2<8,TRUE,FALSE)","v":false},{"$f":"semestre1!E2","v":18.5}]
[null,"Traiter des données à des fins décisionnelles","PPP1",0.5,{"$f":"IFERROR(ROUND(AVERAGEIFS(notes!$A:$A,notes!$C:$C,1,notes!$D:$D,B3,notes!$E:$E,C3),2),\"Veuillez renseignez vos notes\")","v":9.1300000000000008},{"$f":"IFERROR(ROUND((E3*F9+E4*F10+E5*F11+E6*F12+E7*F13+E8*F14)/SUM(F9:F14),2),\"Veuillez renseignez vos notes\")","v":18.5},null,"C2<8",{"$f":"IF(semestre1!E9<8,TRUE,FALSE)","v":false},{"$f":"semestre1!E9","v":11.5}]
[null,null,"Tableur et reporting",1.5,{"$f":"IFERROR(ROUND(AVERAGEIFS(notes!$A:$A,notes!$C:$C,1,notes!$D:$D,B3,notes!$E:$E,C4),2),\"Veuillez renseignez vos notes\")","v":18.5},null,null,"C3<8",{"$f":"IF(semestre1!E15<8,TRUE,FALSE)","v":false},{"$f":"semestre1!E15","v":12.7}]
["Semestre 1    ------------->",null,"Base de données relationnelle 1",2,{"$f":"IFERROR(ROUND(AVERAGEIFS(notes!$A:$A,notes!$C:$C,1,notes!$D:$D,B3,notes!$E:$E,C5),2),\"Veuillez renseignez vos notes\")","v":10}]
[null,null,"Base de la programmation 1",2,{"$f":"IFERROR(ROUND(AVERAGEIFS(notes!$A:$A,notes!$C:$C,1,notes!$D:$D,B3,notes!$E:$E,C6),2),\"Veuillez renseignez vos notes\")","v":14.75},null,null,"S2",null,{"$f":"COUNTIF(I7:I9,TRUE)","v":1},{"$f":"J1+J6","v":1}]
[null,null,"SAE - Création d'un reporting",2,{"$f":"IFERROR(ROUND(AVERAGEIFS(notes!$A:$A,notes!$C:$C,1,notes!$D:$D,B3,notes!$E:$E,C7),2),\"Veuillez renseignez vos notes\")","v":6},null,null,"C1<8",{"$f":"IF(semestre2!E2<8,TRUE,FALSE)","v":false},{"$f":"semestre2!E2","v":10.11}]
[null,null,"SAE - Gestion de fichiers",2,{"$f":"IFERROR(ROUND(AVERAGEIFS(notes!$A:$A,notes!$C:$C,1,notes!$D:$D,B3,notes!$E:$E,C8),2),\"Veuillez renseignez vos notes\")","v":8.25},null,null,"C2<8",{"$f":"IF(semestre2!E11<8,TRUE,FALSE)","v":true},{"$f":"semestre2!E11","v":7.45}]
[null,null,null,null,null,null,null,"C3<8",{"$f":"IF(semestre2!E21<8,TRUE,FALSE)","v":false},{"$f":"semestre2!E21","v":14.46}]
[null,"Analyser statistiquement les données","PPP1",0.5,{"$f":"IFERROR(ROUND(AVERAGEIFS(notes!$A:$A,notes!$C:$C,1,notes!$D:$D,B10,notes!$E:$E,C10),2),\"Veuillez renseignez vos notes\")","v":15},{"$f":"IFERROR(ROUND((E10*D10+E11*D11+E12*D12+E13*D13+E14*D14)/SUM(D10:D14),2),\"Veuillez renseignez vos notes\")","v":11.5},null,"Semestre 1 - Compétences validées"]
[null,null,"Statistique Descriptive 1",2,{"$f":"IFERROR(ROUND(AVERAGEIFS(notes!$A:$A,notes!$C:$C,1,notes!$D:$D,B10,notes!$E:$E,C11),2),\"Veuillez renseignez vos notes\")","v":16.5},null,null,"Compétence 1",{"$f":"IF(I2=FALSE,\"Niveau 1 validée\",\"Niveau 1 non validée\")","v":"Niveau 1 validée"}]
[null,null,"Probabilités 1",1.5,{"$f":"IFERROR(ROUND(AVERAGEIFS(notes!$A:$A,notes!$C:$C,1,notes!$D:$D,B10,notes!$E:$E,C12),2),\"Veuillez renseignez vos notes\")","v":14},null,null,"Compétence 2",{"$f":"IF(I3=FALSE,\"Niveau 1 validée\",\"Niveau 1 non validée\")","v":"Niveau 1 validée"}]
[null,null,"Mathématiques 1",2,{"$f":"IFERROR(ROUND(AVERAGEIFS(notes!$A:$A,notes!$C:$C,1,notes!$D:$D,B10,notes!$E:$E,C13),2),\"Veuillez renseignez vos notes\")","v":14.75},null,null,"Compétence 3",{"$f":"IF(I4=FALSE,\"Niveau 1 validée\",\"Niveau 1 non validée\")","v":"Niveau 1 validée"}]
[null,null,"SAE - Mise en œuvre de l'enquête et exploitation statistique des réponses",4,{"$f":"IFERROR(ROUND(AVERAGEIFS(notes!$A:$A,notes!$C:$C,1,notes!$D:$D,B10,notes!$E:$E,C14),2),\"Veuillez renseignez vos notes\")","v":6}]
[null,null,null,null,null,null,null,"Semestre 2 - Compétences validées"]
[null,"Valoriser une production dans un contexte professionnel","PPP1",0.5,{"$f":"IFERROR(ROUND(AVERAGEIFS(notes!$A:$A,notes!$C:$C,1,notes!$D:$D,B16,notes!$E:$E,C16),2),\"Veuillez renseignez vos notes\")","v":14.5},{"$f":"IFERROR(ROUND((E16*D16+E17*D17+E18*D18+E19*D19+E20*D20+E21*D21)/SUM(D16:D21),2),\"Veuillez renseignez vos notes\")","v":12.7},null,"Compétence 1",{"$f":"IF(I7=FALSE,\"Niveau 2 validée\",\"Niveau 2 non validée\")","v":"Niveau 2 validée"}]
[null,null,"Initiation à l'anglais de spécialité",1.5,{"$f":"IFERROR(ROUND(AVERAGEIFS(notes!$A:$A,notes!$C:$C,1,notes!$D:$D,B16,notes!$E:$E,C17),2),\"Veuillez renseignez vos notes\")","v":11},null,null,"Compétence 2",{"$f":"IF(I8=FALSE,\"Niveau 2 validée\",\"Niveau 2 non validée\")","v":"Niveau 2 non validée"}]
[null,null,"Base de la communication professionnelle",1.5,{"$f":"IFERROR(ROUND(AVERAGEIFS(notes!$A:$A,notes!$C:$C,1,notes!$D:$D,B16,notes!$E:$E,C18),2),\"Veuillez renseignez vos notes\")","v":19},null,null,"Compétence 3",{"$f":"IF(I9=FALSE,\"Niveau 2 validée\",\"Niveau 2 non validée\")","v":"Niveau 2 validée"}]
[null,null,"Découverte des données de l'environnement entrepreneurial et économique",2.5,{"$f":"IFERROR(ROUND(AVERAGEIFS(notes!$A:$A,notes!$C:$C,1,notes!$D:$D,B16,notes!$E:$E,C19),2),\"Veuillez renseignez vos notes\")","v":9.5}]
[null,null,"SAE - Analyse des données d'un bassin d'emploi",2,{"$f":"IFERROR(ROUND(AVERAGEIFS(notes!$A:$A,notes!$C:$C,1,notes!$D:$D,B16,notes!$E:$E,C20),2),\"Veuillez renseignez vos notes\")","v":12}]
[null,null,"SAE - Présentation d'un territoire économique et culturel",2,{"$f":"IFERROR(ROUND(AVERAGEIFS(notes!$A:$A,notes!$C:$C,1,notes!$D:$D,B16,notes!$E:$E,C21),2),\"Veuillez renseignez vos notes\")","v":13.5}]
[]
[]
[]
[]
[]
[]
[]
[]
["Décision du jury :"]
[{"$f":"\"Vous \"&IF(K6>0,\"ne passez pas\",\"passez\")&\" en deuxième année.\"","v":"Vous ne passez pas en deuxième année."}]
[]
["Semestre 1 :"]
[{"$f":"\"Vous \"&IF(J1>0,\"ne passez pas\",\"passez\")&\" votre semestre 1 avec \"&ROUND(AVERAGE(J2:J4),2)&\" de moyenne sur le S1\"","v":"Vous passez votre semestre 1 avec 14,23 de moyenne sur le S1"}]
[]
["Semestre 2 :"]
[{"$f":"\"Vous \"&IF(J6>0,\"ne passez pas\",\"passez\")&\" votre semestre 2 avec \"&ROUND(AVERAGE(J7:J9),2)&\" de moyenne sur le S2\"","v":"Vous ne passez pas votre semestre 2 avec 10,67 de moyenne sur le S2"}]

{"sheet":"semestre1","index":2,"n_rows":20,"n_cols":5,"rows_kept":20,"cut":false,"hidden":true,"merged":[[1,4,6,4],[8,4,12,4],[14,4,19,4],[1,0,6,0],[8,0,12,0],[14,0,19,0]]}
["Compétences","Ressources","Coefficients","Moyennes des ressources","Moyenne de la compétence"]
["Traiter des données à des fins décisionnelles","PPP1",0.5,{"$f":"IFERROR(ROUND(AVERAGEIFS(notes!$A:$A,notes!$C:$C,1,notes!$D:$D,A2,notes!$E:$E,B2),2),\"Veuillez renseignez vos notes\")","v":9.1300000000000008},{"$f":"IFERROR(ROUND((D2*E8+D3*E9+D4*E10+D5*E11+D6*E12+D7*E13)/SUM(E8:E13),2),\"Veuillez renseignez vos notes\")","v":18.5}]
[null,"Tableur et reporting",1.5,{"$f":"IFERROR(ROUND(AVERAGEIFS(notes!$A:$A,notes!$C:$C,1,notes!$D:$D,A2,notes!$E:$E,B3),2),\"Veuillez renseignez vos notes\")","v":18.5}]
[null,"Base de données relationnelle 1",2,{"$f":"IFERROR(ROUND(AVERAGEIFS(notes!$A:$A,notes!$C:$C,1,notes!$D:$D,A2,notes!$E:$E,B4),2),\"Veuillez renseignez vos notes\")","v":10}]
[null,"Base de la programmation 1",2,{"$f":"IFERROR(ROUND(AVERAGEIFS(notes!$A:$A,notes!$C:$C,1,notes!$D:$D,A2,notes!$E:$E,B5),2),\"Veuillez renseignez vos notes\")","v":14.75}]
[null,"SAE - Création d'un reporting",2,{"$f":"IFERROR(ROUND(AVERAGEIFS(notes!$A:$A,notes!$C:$C,1,notes!$D:$D,A2,notes!$E:$E,B6),2),\"Veuillez renseignez vos notes\")","v":6}]
[null,"SAE - Gestion de fichiers",2,{"$f":"IFERROR(ROUND(AVERAGEIFS(notes!$A:$A,notes!$C:$C,1,notes!$D:$D,A2,notes!$E:$E,B7),2),\"Veuillez renseignez vos notes\")","v":8.25}]
[]
["Analyser statistiquement les données","PPP1",0.5,{"$f":"IFERROR(ROUND(AVERAGEIFS(notes!$A:$A,notes!$C:$C,1,notes!$D:$D,A9,notes!$E:$E,B9),2),\"Veuillez renseignez vos notes\")","v":15},{"$f":"IFERROR(ROUND((D9*C9+D10*C10+D11*C11+D12*C12+D13*C13)/SUM(C9:C13),2),\"Veuillez renseignez vos notes\")","v":11.5}]
[null,"Statistique Descriptive 1",2,{"$f":"IFERROR(ROUND(AVERAGEIFS(notes!$A:$A,notes!$C:$C,1,notes!$D:$D,A9,notes!$E:$E,B10),2),\"Veuillez renseignez vos notes\")","v":16.5}]
[null,"Probabilités 1",1.5,{"$f":"IFERROR(ROUND(AVERAGEIFS(notes!$A:$A,notes!$C:$C,1,notes!$D:$D,A9,notes!$E:$E,B11),2),\"Veuillez renseignez vos notes\")","v":14}]
[null,"Mathématiques 1",2,{"$f":"IFERROR(ROUND(AVERAGEIFS(notes!$A:$A,notes!$C:$C,1,notes!$D:$D,A9,notes!$E:$E,B12),2),\"Veuillez renseignez vos notes\")","v":14.75}]
[null,"SAE - Mise en œuvre de l'enquête et exploitation statistique des réponses",4,{"$f":"IFERROR(ROUND(AVERAGEIFS(notes!$A:$A,notes!$C:$C,1,notes!$D:$D,A9,notes!$E:$E,B13),2),\"Veuillez renseignez vos notes\")","v":6}]
[]
["Valoriser une production dans un contexte professionnel","PPP1",0.5,{"$f":"IFERROR(ROUND(AVERAGEIFS(notes!$A:$A,notes!$C:$C,1,notes!$D:$D,A15,notes!$E:$E,B15),2),\"Veuillez renseignez vos notes\")","v":14.5},{"$f":"IFERROR(ROUND((D15*C15+D16*C16+D17*C17+D18*C18+D19*C19+D20*C20)/SUM(C15:C20),2),\"Veuillez renseignez vos notes\")","v":12.7}]
[null,"Initiation à l'anglais de spécialité",1.5,{"$f":"IFERROR(ROUND(AVERAGEIFS(notes!$A:$A,notes!$C:$C,1,notes!$D:$D,A15,notes!$E:$E,B16),2),\"Veuillez renseignez vos notes\")","v":11}]
[null,"Base de la communication professionnelle",1.5,{"$f":"IFERROR(ROUND(AVERAGEIFS(notes!$A:$A,notes!$C:$C,1,notes!$D:$D,A15,notes!$E:$E,B17),2),\"Veuillez renseignez vos notes\")","v":19}]
[null,"Découverte des données de l'environnement entrepreneurial et économique",2.5,{"$f":"IFERROR(ROUND(AVERAGEIFS(notes!$A:$A,notes!$C:$C,1,notes!$D:$D,A15,notes!$E:$E,B18),2),\"Veuillez renseignez vos notes\")","v":9.5}]
[null,"SAE - Analyse des données d'un bassin d'emploi",2,{"$f":"IFERROR(ROUND(AVERAGEIFS(notes!$A:$A,notes!$C:$C,1,notes!$D:$D,A15,notes!$E:$E,B19),2),\"Veuillez renseignez vos notes\")","v":12}]
[null,"SAE - Présentation d'un territoire économique et culturel",2,{"$f":"IFERROR(ROUND(AVERAGEIFS(notes!$A:$A,notes!$C:$C,1,notes!$D:$D,A15,notes!$E:$E,B20),2),\"Veuillez renseignez vos notes\")","v":13.5}]

{"sheet":"semestre2","index":3,"n_rows":28,"n_cols":5,"rows_kept":28,"cut":false,"hidden":true,"merged":[[1,4,8,4],[10,4,18,4],[20,4,27,4],[1,0,8,0],[10,0,18,0],[20,0,27,0]]}
["Compétences","Ressources","Coefficients","Moyennes des ressources","Moyenne de la compétence"]
["Traiter des données à des fins décisionnelles","PPP2",0.5,{"$f":"IFERROR(ROUND(AVERAGEIFS(notes!$A:$A,notes!$C:$C,2,notes!$D:$D,A2,notes!$E:$E,B2),2),\"Veuillez renseignez vos notes\")","v":8},{"$f":"IFERROR(ROUND((D2*C2+D3*C3+D4*C4+D5*C5+D6*C6+D7*C7+D8*C8+D9*C9)/SUM(C2:C9),2),\"Veuillez renseignez vos notes\")","v":10.11}]
[null,"Base de données relationnelle 2",1.5,{"$f":"IFERROR(ROUND(AVERAGEIFS(notes!$A:$A,notes!$C:$C,2,notes!$D:$D,A2,notes!$E:$E,B3),2),\"Veuillez renseignez vos notes\")","v":4.5}]
[null,"Bases de la programmation 2",1.5,{"$f":"IFERROR(ROUND(AVERAGEIFS(notes!$A:$A,notes!$C:$C,2,notes!$D:$D,A2,notes!$E:$E,B4),2),\"Veuillez renseignez vos notes\")","v":18}]
[null,"Programmation statistique",1.5,{"$f":"IFERROR(ROUND(AVERAGEIFS(notes!$A:$A,notes!$C:$C,2,notes!$D:$D,A2,notes!$E:$E,B5),2),\"Veuillez renseignez vos notes\")","v":11.75}]
[null,"Reporting et datavisualisation",1,{"$f":"IFERROR(ROUND(AVERAGEIFS(notes!$A:$A,notes!$C:$C,2,notes!$D:$D,A2,notes!$E:$E,B6),2),\"Veuillez renseignez vos notes\")","v":16}]
[null,"SAE - Analyse de données, reporting et datavisualisation",2,{"$f":"IFERROR(ROUND(AVERAGEIFS(notes!$A:$A,notes!$C:$C,2,notes!$D:$D,A2,notes!$E:$E,B7),2),\"Veuillez renseignez vos notes\")","v":7.5}]
[null,"SAE - Conception et implémentation d'une base de données",1.5,{"$f":"IFERROR(ROUND(AVERAGEIFS(notes!$A:$A,notes!$C:$C,2,notes!$D:$D,A2,notes!$E:$E,B8),2),\"Veuillez renseignez vos notes\")","v":5}]
[null,"SAE - Portfolio",0.5,{"$f":"IFERROR(ROUND(AVERAGEIFS(notes!$A:$A,notes!$C:$C,2,notes!$D:$D,A2,notes!$E:$E,B9),2),\"Veuillez renseignez vos notes\")","v":14.5}]
[]
["Analyser statistiquement les données","PPP2",0.5,{"$f":"IFERROR(ROUND(AVERAGEIFS(notes!$A:$A,notes!$C:$C,2,notes!$D:$D,A11,notes!$E:$E,B11),2),\"Veuillez renseignez vos notes\")","v":0},{"$f":"IFERROR(ROUND((D11*C11+D12*C12+D13*C13+D14*C14+D15*C15+D16*C16+D17*C17+D18*C18+D19*C19)/SUM(C11:C19),2),\"Veuillez renseignez vos notes\")","v":7.45}]
[null,"Statistique descriptive 2",1,{"$f":"IFERROR(ROUND(AVERAGEIFS(notes!$A:$A,notes!$C:$C,2,notes!$D:$D,A11,notes!$E:$E,B12),2),\"Veuillez renseignez vos notes\")","v":11}]
[null,"Statistique inférentielle",1.5,{"$f":"IFERROR(ROUND(AVERAGEIFS(notes!$A:$A,notes!$C:$C,2,notes!$D:$D,A11,notes!$E:$E,B13),2),\"Veuillez renseignez vos notes\")","v":18}]
[null,"Probabilités 2",1.5,{"$f":"IFERROR(ROUND(AVERAGEIFS(notes!$A:$A,notes!$C:$C,2,notes!$D:$D,A11,notes!$E:$E,B14),2),\"Veuillez renseignez vos notes\")","v":8.5}]
[null,"Mathématiques 2",1,{"$f":"IFERROR(ROUND(AVERAGEIFS(notes!$A:$A,notes!$C:$C,2,notes!$D:$D,A11,notes!$E:$E,B15),2),\"Veuillez renseignez vos notes\")","v":14.75}]
[null,"SAE - Analyse de données, reporting et datavisualisation",2,{"$f":"IFERROR(ROUND(AVERAGEIFS(notes!$A:$A,notes!$C:$C,2,notes!$D:$D,A11,notes!$E:$E,B16),2),\"Veuillez renseignez vos notes\")","v":0}]
[null,"SAE - Estimation par sondage",1,{"$f":"IFERROR(ROUND(AVERAGEIFS(notes!$A:$A,notes!$C:$C,2,notes!$D:$D,A11,notes!$E:$E,B17),2),\"Veuillez renseignez vos notes\")","v":9}]
[null,"SAE - Régression sur des données réelles",1,{"$f":"IFERROR(ROUND(AVERAGEIFS(notes!$A:$A,notes!$C:$C,2,notes!$D:$D,A11,notes!$E:$E,B18),2),\"Veuillez renseignez vos notes\")","v":0}]
[null,"SAE - Portfolio",0.5,{"$f":"IFERROR(ROUND(AVERAGEIFS(notes!$A:$A,notes!$C:$C,2,notes!$D:$D,A11,notes!$E:$E,B19),2),\"Veuillez renseignez vos notes\")","v":0}]
[]
["Valoriser une production dans un contexte professionnel","PPP2",0.5,{"$f":"IFERROR(ROUND(AVERAGEIFS(notes!$A:$A,notes!$C:$C,2,notes!$D:$D,A21,notes!$E:$E,B21),2),\"Veuillez renseignez vos notes\")","v":8.5},{"$f":"IFERROR(ROUND((D21*C21+D22*C22+D23*C23+D24*C24+D25*C25+D26*C26+D27*C27+D28*C28)/SUM(C21:C28),2),\"Veuillez renseignez vos notes\")","v":14.46}]
[null,"Approfondissement de l'anglais de spécialité",1.5,{"$f":"IFERROR(ROUND(AVERAGEIFS(notes!$A:$A,notes!$C:$C,2,notes!$D:$D,A21,notes!$E:$E,B22),2),\"Veuillez renseignez vos notes\")","v":18.5}]
[null,"Communication, sémiologie et argumentation",1.5,{"$f":"IFERROR(ROUND(AVERAGEIFS(notes!$A:$A,notes!$C:$C,2,notes!$D:$D,A21,notes!$E:$E,B23),2),\"Veuillez renseignez vos notes\")","v":10}]
[null,"Etude des données de l'environnement entrepreneurial et économique",2,{"$f":"IFERROR(ROUND(AVERAGEIFS(notes!$A:$A,notes!$C:$C,2,notes!$D:$D,A21,notes!$E:$E,B24),2),\"Veuillez renseignez vos notes\")","v":14.75}]
[null,"SAE - Analyse de données, reporting et datavisualisation",2,{"$f":"IFERROR(ROUND(AVERAGEIFS(notes!$A:$A,notes!$C:$C,2,notes!$D:$D,A21,notes!$E:$E,B25),2),\"Veuillez renseignez vos notes\")","v":16.5}]
[null,"SAE - Construction et présentation d’indicateurs de performance",1,{"$f":"IFERROR(ROUND(AVERAGEIFS(notes!$A:$A,notes!$C:$C,2,notes!$D:$D,A21,notes!$E:$E,B26),2),\"Veuillez renseignez vos notes\")","v":17.5}]
[null,"SAE - Dataviz",1,{"$f":"IFERROR(ROUND(AVERAGEIFS(notes!$A:$A,notes!$C:$C,2,notes!$D:$D,A21,notes!$E:$E,B27),2),\"Veuillez renseignez vos notes\")","v":12}]
[null,"SAE - Portfolio",0.5,{"$f":"IFERROR(ROUND(AVERAGEIFS(notes!$A:$A,notes!$C:$C,2,notes!$D:$D,A21,notes!$E:$E,B28),2),\"Veuillez renseignez vos notes\")","v":11.25}]

{"sheet":"notes","index":4,"n_rows":47,"n_cols":5,"rows_kept":47,"cut":false,"hidden":true,"merged":[]}
["note","coefficient","semestre","compétence","ressource"]
[8.5,1,1,"Traiter des données à des fins décisionnelles","PPP1"]
[18.5,1,1,"Traiter des données à des fins décisionnelles","Tableur et reporting"]
[10,1,1,"Traiter des données à des fins décisionnelles","Base de données relationnelle 1"]
[14.75,1,1,"Traiter des données à des fins décisionnelles","Base de la programmation 1"]
[6,1,1,"Traiter des données à des fins décisionnelles","SAE - Création d'un reporting"]
[8.25,1,1,"Traiter des données à des fins décisionnelles","SAE - Gestion de fichiers"]
[15,1,1,"Analyser statistiquement les données","PPP1"]
[16.5,1,1,"Analyser statistiquement les données","Statistique Descriptive 1"]
[18,1,1,"Analyser statistiquement les données","Probabilités 1"]
[14.75,1,1,"Analyser statistiquement les données","Mathématiques 1"]
[6,3,1,"Analyser statistiquement les données","SAE - Mise en œuvre de l'enquête et exploitation statistique des réponses"]
[14.5,1,1,"Valoriser une production dans un contexte professionnel","PPP1"]
[11,1,1,"Valoriser une production dans un contexte professionnel","Initiation à l'anglais de spécialité"]
[19,1,1,"Valoriser une production dans un contexte professionnel","Base de la communication professionnelle"]
[9.5,1,1,"Valoriser une production dans un contexte professionnel","Découverte des données de l'environnement entrepreneurial et économique"]
[12,1,1,"Valoriser une production dans un contexte professionnel","SAE - Analyse des données d'un bassin d'emploi"]
[13.5,1,1,"Valoriser une production dans un contexte professionnel","SAE - Présentation d'un territoire économique et culturel"]
[8,1,2,"Traiter des données à des fins décisionnelles","PPP2"]
[4.5,1,2,"Traiter des données à des fins décisionnelles","Base de données relationnelle 2"]
[18,1,2,"Traiter des données à des fins décisionnelles","Bases de la programmation 2"]
[11.75,1,2,"Traiter des données à des fins décisionnelles","Programmation statistique"]
[16,1,2,"Traiter des données à des fins décisionnelles","Reporting et datavisualisation"]
[7.5,1,2,"Traiter des données à des fins décisionnelles","SAE - Analyse de données, reporting et datavisualisation"]
[5,1,2,"Traiter des données à des fins décisionnelles","SAE - Conception et implémentation d'une base de données"]
[14.5,1,2,"Traiter des données à des fins décisionnelles","SAE - Portfolio"]
[0,1,2,"Analyser statistiquement les données","PPP2"]
[11,1,2,"Analyser statistiquement les données","Statistique descriptive 2"]
[18,1,2,"Analyser statistiquement les données","Statistique inférentielle"]
[8.5,1,2,"Analyser statistiquement les données","Probabilités 2"]
[14.75,1,2,"Analyser statistiquement les données","Mathématiques 2"]
[0,1,2,"Analyser statistiquement les données","SAE - Analyse de données, reporting et datavisualisation"]
[0,1,2,"Analyser statistiquement les données","SAE - Construction et présentation d’indicateurs de performance"]
[0,1,2,"Analyser statistiquement les données","SAE - Régression sur des données réelles"]
[0,1,2,"Analyser statistiquement les données","SAE - Portfolio"]
[8.5,1,2,"Valoriser une production dans un contexte professionnel","PPP2"]
[18.5,1,2,"Valoriser une production dans un contexte professionnel","Approfondissement de l'anglais de spécialité"]
[10,1,2,"Valoriser une production dans un contexte professionnel","Communication, sémiologie et argumentation"]
[14.75,1,2,"Valoriser une production dans un contexte professionnel","Etude des données de l'environnement entrepreneurial et économique"]
[16.5,1,2,"Valoriser une production dans un contexte professionnel","SAE - Analyse de données, reporting et datavisualisation"]
[17.5,1,2,"Valoriser une production dans un contexte professionnel","SAE - Construction et présentation d’indicateurs de performance"]
[12,1,2,"Valoriser une production dans un contexte professionnel","SAE - Dataviz"]
[11.25,1,2,"Valoriser une production dans un contexte professionnel","SAE - Portfolio"]
[9,1,2,"Analyser statistiquement les données","SAE - Estimation par sondage"]
[9.75,2,1,"Traiter des données à des fins décisionnelles","PPP1"]
[10,1.5,1,"Analyser statistiquement les données","Probabilités 1"]
[15,3,2,"Valoriser une production dans un contexte professionnel","Découverte des données de l'environnement entrepreneurial et économique"]

{"sheet":"competences_ressources","index":5,"n_rows":12,"n_cols":15,"rows_kept":12,"cut":false,"hidden":true,"merged":[[1,2,1,3],[1,4,1,5],[1,6,1,7],[0,2,0,7],[0,9,0,14],[1,9,1,10],[1,11,1,12],[1,13,1,14]]}
["Compétences",null,"Semestre 1",null,null,null,null,null,null,"Semestre 2"]
["Traiter des données à des fins décisionnelles",null,"Compétence 1",null,"Compétence 2",null,"Compétence 3",null,null,"Compétence 1",null,"Compétence 2",null,"Compétence 3"]
["Analyser statistiquement les données",null,"Ressources","Coefficient","Ressources","Coefficient","Ressources","Coefficient",null,"Ressources","Coefficient","Ressources","Coefficient","Ressources","Coefficient"]
["Valoriser une production dans un contexte professionnel",null,"PPP1",null,"PPP1",null,"PPP1",null,null,"PPP2",null,"PPP2",null,"PPP2"]
[null,null,"Tableur et reporting",null,"Statistique Descriptive 1",null,"Initiation à l'anglais de spécialité",null,null,"Base de données relationnelle 2",null,"Statistique descriptive 2",null,"Approfondissement de l'anglais de spécialité"]
[null,null,"Base de données relationnelle 1",null,"Probabilités 1",null,"Base de la communication professionnelle",null,null,"Bases de la programmation 2",null,"Statistique inférentielle",null,"Communication, sémiologie et argumentation"]
[null,null,"Base de la programmation 1",null,"Mathématiques 1",null,"Découverte des données de l'environnement entrepreneurial et économique",null,null,"Programmation statistique",null,"Probabilités 2",null,"Etude des données de l'environnement entrepreneurial et économique"]
[null,null,"SAE - Création d'un reporting",null,"SAE - Mise en œuvre de l'enquête et exploitation statistique des réponses",null,"SAE - Analyse des données d'un bassin d'emploi",null,null,"Reporting et datavisualisation",null,"Mathématiques 2",null,"SAE - Analyse de données, reporting et datavisualisation"]
[null,null,"SAE - Gestion de fichiers",null,null,null,"SAE - Présentation d'un territoire économique et culturel",null,null,"SAE - Analyse de données, reporting et datavisualisation",null,"SAE - Analyse de données, reporting et datavisualisation",null,"SAE - Construction et présentation d’indicateurs de performance"]
[null,null,null,null,null,null,null,null,null,"SAE - Conception et implémentation d'une base de données",null,"SAE - Estimation par sondage",null,"SAE - Dataviz"]
[null,null,null,null,null,null,null,null,null,"SAE - Portfolio",null,"SAE - Régression sur des données réelles",null,"SAE - Portfolio"]
[null,null,null,null,null,null,null,null,null,null,null,"SAE - Portfolio"]